bitfinex-derivatives/quotes_SOLF0:USTF0_20260304
["timestamp","ask_amount","ask_price","bid_price","bid_amount"]
[1772638685232,7.28033848,92.29,92.21,21.7960817]
[1772638685429,22.57969383,92.367,92.251,21.7960817]
[1772638685643,9.745,92.341,92.251,21.7960817]
[1772638685837,22.57969383,92.349,92.255,21.7960817]
[1772638686231,22.57969383,92.349,92.191,151.837]
[1772638686232,22.57969383,92.349,92.257,21.7960817]
[1772638686538,7.28033848,92.37,92.261,21.7960817]
[1772638687241,7.28033848,92.37,92.26,7.28033848]
[1772638687242,29.86003231,92.37,92.281,21.7960817]
[1772638687734,29.86003231,92.37,92.24,151.757]
[1772638687735,22.57969383,92.398,92.301,21.7960817]
[1772638687932,22.57969383,92.398,92.3,7.28033848]
[1772638687933,7.28033848,92.4,92.321,21.7960817]
[1772638688138,7.28033848,92.42,92.321,21.7960817]
[1772638688334,22.57969383,92.419,92.321,21.7960817]
[1772638688534,7.28033848,92.41,92.321,21.7960817]
[1772638688733,22.57969383,92.409,92.321,21.7960817]
[1772638688933,9.741,92.377,92.321,21.7960817]
[1772638689134,7.28033848,92.37,92.281,21.7960817]
[1772638690038,22.57969383,92.349,92.255,21.7960817]
[1772638690439,22.57969383,92.329,92.255,21.7960817]
[1772638690737,22.57969383,92.329,92.231,21.7960817]
[1772638690738,7.28033848,92.31,92.231,21.7960817]
[1772638691040,7.28033848,92.33,92.2,7.28033848]
[1772638691041,7.28033848,92.29,92.201,21.7960817]
[1772638691441,7.28033848,92.27,92.209,21.7960817]
[1772638691843,7.28033848,92.27,92.11,151.971]
[1772638691844,7.28033848,92.25,92.181,31.5580817]
[1772638692036,7.28033848,92.25,92.181,21.7960817]
[1772638692632,22.57969383,92.249,92.156,21.7960817]
[1772638692933,22.57969383,92.239,92.156,21.7960817]
[1772638693133,7.28033848,92.22,92.101,21.7960817]
[1772638693334,29.86003231,92.22,92.101,21.7960817]
[1772638693538,9.76,92.194,92.12,31.5640817]
[1772638693734,7.28033848,92.2,92.12,21.7960817]
[1772638693936,22.57969383,92.219,92.12,21.7960817]
[1772638694139,7.28033848,92.2,92.12,21.7960817]
[1772638694542,7.28033848,92.18,92.12,21.7960817]
[1772638695047,7.28033848,92.18,92.104,9.77]
[1772638695239,7.28033848,92.18,92.104,31.5660817]
[1772638695443,7.28033848,92.18,92.104,21.7960817]
[1772638696153,7.28033848,92.18,92.106,21.7960817]
[1772638696545,22.57969383,92.159,92.079,21.7960817]
[1772638696848,7.28033848,92.14,92.079,21.7960817]
[1772638697142,151.834,92.194,91.998,264.60993111]
[1772638697143,7.28033848,92.12,92.055,21.7960817]
[1772638697551,7.28033848,92.14,92.055,21.7960817]
[1772638697747,7.28033848,92.14,92.058,21.7960817]
[1772638697948,9.764,92.157,92.058,21.7960817]
[1772638698149,7.28033848,92.14,92.058,21.7960817]
[1772638698644,28.58196705,92.14,92.058,21.7960817]
[1772638699044,7.28033848,92.12,92.033,22.4543156]
[1772638699444,7.28033848,92.1,92.033,22.4543156]
[1772638700852,151.899,92.155,92.003,22.4543156]
[1772638700853,7.28033848,92.08,92.003,22.4543156]
[1772638701548,21.30162857,92.079,92.003,22.4543156]
[1772638701751,21.30162857,92.059,91.976,22.4543156]
[1772638701953,7.28033848,92.04,91.952,22.4543156]
[1772638702354,7.28033848,92.02,91.952,22.4543156]
[1772638703043,9.779,92.017,91.952,22.4543156]
[1772638703349,7.28033848,92.02,91.952,22.4543156]
[1772638703942,21.30162857,92.039,91.91,7.28033848]
[1772638704142,7.28033848,92.01,91.918,22.88690105]
[1772638704352,7.28033848,92.02,91.931,22.88690105]
[1772638704548,9.779,92.018,91.931,22.88690105]
[1772638704754,152.041,92.069,91.931,22.88690105]
[1772638704755,7.28033848,92.0,91.931,22.88690105]
[1772638705648,7.28033848,92.0,91.932,32.67490105]
[1772638705843,21.51046025,92.019,91.933,22.88690105]
[1772638706049,7.28033848,92.02,91.933,22.88690105]
[1772638706254,7.28033848,92.02,91.956,22.88690105]
[1772638706654,7.28033848,92.04,91.956,22.88690105]
[1772638706954,7.28033848,92.04,91.97,9.784]
[1772638707157,7.28033848,92.04,91.971,22.88690105]
[1772638707552,9.777,92.039,91.957,9.785]
[1772638707748,9.777,92.039,91.957,32.67190105]
[1772638707950,9.781,91.999,91.931,22.88690105]
[1772638708350,7.28033848,92.0,91.931,22.88690105]
[1772638708546,9.779,92.014,91.931,22.88690105]
[1772638708751,21.51046025,92.016,91.931,22.88690105]
[1772638708951,7.28033848,92.02,91.931,22.88690105]
[1772638709352,21.51046025,92.041,91.949,22.88690105]
[1772638709653,7.28033848,92.04,91.949,22.88690105]
[1772638709851,7.28033848,92.04,91.969,22.88690105]
[1772638710857,7.28033848,92.09,92.0,22.88690105]
[1772638711363,9.773,92.077,92.001,9.781]
[1772638711662,7.28033848,92.07,92.0,22.88690105]
[1772638712161,7.28033848,92.08,92.0,22.88690105]
[1772638712657,9.773,92.078,92.002,22.88690105]
[1772638713258,7.28033848,92.06,91.978,22.88690105]
[1772638713455,28.79079873,92.06,91.978,22.88690105]
[1772638713760,28.79079873,92.06,91.95,7.28033848]
[1772638713761,9.775,92.054,91.98,22.88690105]
[1772638714057,21.51046025,92.059,91.98,22.88690105]
[1772638714262,21.51046025,92.059,91.994,9.781]
[1772638714961,21.51046025,92.059,91.982,9.783]
[1772638715164,7.28033848,92.06,91.98,22.88690105]
[1772638715462,21.51046025,92.059,91.98,22.88690105]
[1772638715860,7.28033848,92.04,91.957,9.785]
[1772638716158,21.51046025,92.039,91.956,22.88690105]
[1772638716360,9.777,92.037,91.956,22.88690105]
[1772638716662,7.29137785,92.01,91.956,22.88690105]
[1772638716863,7.29137785,92.01,91.921,22.88690105]
[1772638717266,7.29137785,91.99,91.922,9.789]
[1772638717558,7.29137785,91.99,91.922,22.88690105]
[1772638717959,7.29137785,91.99,91.933,9.788]
[1772638718162,7.29137785,91.99,91.922,22.88690105]
[1772638718762,9.782,91.988,91.922,22.88690105]
[1772638719462,9.784,91.968,91.899,22.88690105]
[1772638719873,9.784,91.968,91.876,1.88977404]
[1772638719874,21.51046025,91.968,91.877,22.88690105]
[1772638720066,9.786,91.949,91.877,22.88690105]
[1772638720267,21.51046025,91.968,91.877,22.88690105]
[1772638720466,21.51046025,91.968,91.88,22.88690105]
[1772638720665,7.29137785,91.94,91.88,22.88690105]
[1772638720865,21.51046025,91.968,91.88,22.88690105]
[1772638721070,9.785,91.961,91.892,22.88690105]
[1772638722365,7.29137785,91.97,91.897,22.88690105]
[1772638722670,7.29137785,91.95,91.871,22.88690105]
[1772638722870,9.787,91.947,91.88,9.794]
[1772638723267,9.787,91.947,91.871,22.88690105]
[1772638723471,7.29137785,91.95,91.871,22.88690105]
[1772638723873,7.29137785,91.95,91.884,22.88690105]
[1772638724375,9.785,91.957,91.889,9.793]
[1772638724773,21.51046025,91.969,91.89,22.88690105]
[1772638725177,9.785,91.958,91.89,22.88690105]
[1772638725576,21.51046025,91.969,91.89,22.88690105]
[1772638725881,9.788,91.937,91.858,22.88690105]
[1772638726175,7.29137785,91.93,91.858,22.88690105]
[1772638726378,28.8018381,91.93,91.858,22.88690105]
[1772638726578,9.789,91.928,91.86,9.796]
[1772638726981,9.789,91.928,91.861,22.88690105]
[1772638727277,7.29137785,91.93,91.867,22.88690105]
[1772638727880,7.29137785,91.95,91.868,32.68190105]
[1772638728181,28.8018381,91.95,91.869,22.88690105]
[1772638728882,21.51046025,91.95,91.869,22.88690105]
[1772638729079,9.787,91.939,91.879,9.794]
[1772638729580,20.56176042,91.949,91.869,22.88690105]
[1772638730272,9.789,91.924,91.869,22.88690105]
[1772638730670,7.29137785,91.94,91.869,22.88690105]
[1772638731071,9.789,91.924,91.869,22.88690105]
[1772638731278,7.29137785,91.94,91.872,21.33309031]
[1772638731473,9.786,91.953,91.872,21.33309031]
[1772638732080,9.785,91.963,91.898,9.792]
[1772638732979,20.56176042,91.969,91.892,21.33309031]
[1772638733182,20.56176042,91.969,91.833,19.598]
[1772638733183,7.29137785,91.95,91.861,21.33309031]
[1772638733382,20.56176042,92.009,91.881,21.33309031]
[1772638733578,9.784,91.974,91.902,21.33309031]
[1772638733775,20.56176042,91.989,91.902,21.33309031]
[1772638734784,27.85313827,91.98,91.902,21.33309031]
[1772638734981,20.56176042,91.979,91.902,21.33309031]
[1772638735382,9.785,91.965,91.903,9.791]
[1772638736681,20.56176042,91.979,91.871,21.33309031]
[1772638736880,27.85313827,91.96,91.871,21.33309031]
[1772638737280,20.56176042,91.959,91.883,9.793]
[1772638737584,20.56176042,91.959,91.883,21.33309031]
[1772638737883,9.788,91.937,91.883,21.33309031]
[1772638738085,7.29137785,91.94,91.883,21.33309031]
[1772638738286,9.789,91.92,91.856,31.12909031]
[1772638739087,9.789,91.928,91.864,9.795]
[1772638739279,7.29137785,91.98,91.856,21.33309031]
[1772638739479,19.565,91.986,91.856,21.33309031]
[1772638739480,7.29137785,91.96,91.856,21.33309031]
[1772638739879,20.56176042,91.959,91.887,9.793]
[1772638740284,20.56176042,91.959,91.888,21.33309031]
[1772638740587,20.56176042,91.959,91.87,28.62446816]
[1772638740789,20.56176042,91.959,91.871,21.33309031]
[1772638741088,7.29137785,91.98,91.891,21.33309031]
[1772638741284,20.56176042,91.979,91.891,21.33309031]
[1772638741691,9.786,91.954,91.897,9.792]
[1772638741891,20.56176042,91.979,91.891,21.33309031]
[1772638742789,20.56176042,91.999,91.901,21.33309031]
[1772638743293,20.56176042,91.979,91.901,21.33309031]
[1772638743486,20.56176042,91.979,91.88,28.62446816]
[1772638743686,20.56176042,91.979,91.881,21.33309031]
[1772638744080,9.786,91.953,91.891,9.792]
[1772638744386,20.56176042,91.959,91.881,21.33309031]
[1772638745285,20.56176042,91.959,91.827,11.28457306]
[1772638745286,20.56176042,91.939,91.858,21.33309031]
[1772638745682,20.56176042,91.939,91.863,9.795]
[1772638745683,9.789,91.922,91.863,9.795]
[1772638747185,20.56176042,91.939,91.863,9.795]
[1772638747586,20.56176042,91.939,91.871,9.795]
[1772638747795,7.29137785,91.95,91.872,21.33309031]
[1772638747990,20.56176042,91.949,91.872,21.33309031]
[1772638748383,20.56176042,91.949,91.86,7.29137785]
[1772638748595,20.56176042,91.949,91.861,21.33309031]
[1772638750788,20.56176042,91.971,91.88,7.29137785]
[1772638750992,20.56176042,92.0,91.901,21.33309031]
[1772638751394,9.782,91.991,91.936,9.788]
[1772638751594,9.782,91.991,91.924,21.33309031]
[1772638751993,9.782,91.991,91.935,9.788]
[1772638752298,20.56176042,92.0,91.924,21.33309031]
[1772638752299,9.783,91.981,91.924,21.33309031]
[1772638752493,20.56176042,92.0,91.924,21.33309031]
[1772638752896,19.555,92.036,91.9,7.29137785]
[1772638752897,9.784,91.975,91.9,7.29137785]
[1772638753097,20.56176042,91.989,91.901,21.33309031]
[1772638753495,9.783,91.983,91.921,9.789]
[1772638753991,20.56176042,91.989,91.929,9.788]
[1772638754294,20.56176042,91.989,91.901,21.33309031]
[1772638754695,7.29137785,91.99,91.946,9.787]
[1772638754896,20.56176042,92.009,91.928,21.33309031]
[1772638755694,9.781,91.999,91.936,9.788]
[1772638755998,7.29137785,91.99,91.928,21.33309031]
[1772638756202,7.29137785,91.99,91.936,9.788]
[1772638756395,7.29137785,91.99,91.876,152.358]
[1772638756396,20.56176042,92.035,91.937,21.33309031]
[1772638756592,20.56176042,92.044,91.941,21.33309031]
[1772638756998,20.56176042,92.028,91.941,21.33309031]
[1772638757302,20.56176042,92.009,91.941,21.33309031]
[1772638757499,187.12189518,92.056,91.959,9.785]
[1772638757500,9.779,92.016,91.959,9.785]
[1772638757896,7.29137785,92.02,91.941,21.33309031]
[1772638758198,20.56176042,92.05,91.961,21.33309031]
[1772638758397,27.85313827,92.05,91.961,21.33309031]
[1772638758592,27.85313827,92.05,91.981,21.49013524]
[1772638759799,10.0695963,92.099,92.007,9.78]
[1772638759800,7.29137785,92.07,92.007,9.78]
[1772638760293,9.774,92.068,92.007,9.78]
[1772638760498,22.36354717,92.069,91.996,9.781]
[1772638761502,32.13754717,92.068,92.006,9.78]
[1772638761799,7.29137785,92.07,91.981,21.49013524]
[1772638762003,7.29137785,92.07,92.006,9.78]
[1772638762200,7.29137785,92.07,92.002,21.49013524]
[1772638762506,7.29137785,92.07,92.005,9.78]
[1772638762901,7.29137785,92.05,91.971,21.49013524]
[1772638763096,9.776,92.049,91.985,9.782]
[1772638764702,9.776,92.045,91.975,9.783]
[1772638765607,32.6714663,92.045,91.971,21.49013524]
[1772638765801,9.777,92.038,91.971,21.49013524]
[1772638766602,9.778,92.03,91.971,21.49013524]
[1772638766806,7.29137785,92.02,91.95,22.91768544]
[1772638767704,22.8954663,92.019,91.95,22.91768544]
[1772638768007,7.29137785,92.0,91.95,22.91768544]
[1772638768305,9.781,91.999,91.941,9.787]
[1772638768507,22.8954663,92.009,91.942,22.91768544]
[1772638768707,22.8954663,91.986,91.926,9.789]
[1772638769002,22.8954663,91.986,91.9,22.91768544]
[1772638769003,7.29137785,91.97,91.9,22.91768544]
[1772638769402,22.8954663,91.986,91.916,22.91768544]
[1772638769999,9.783,91.975,91.916,22.91768544]
[1772638770601,30.18684415,91.97,91.891,22.91768544]
[1772638770805,7.29137785,91.97,91.891,22.91768544]
[1772638771006,7.29137785,91.99,91.891,22.91768544]
[1772638771708,7.29137785,91.99,91.89,7.29137785]
[1772638771709,7.29137785,91.99,91.925,22.91768544]
[1772638772205,9.782,91.988,91.925,22.91768544]
[1772638773401,9.782,91.988,91.928,9.788]
[1772638773807,7.29137785,91.99,91.929,22.91768544]
[1772638774007,7.29137785,92.01,91.929,22.91768544]
[1772638774202,7.29137785,92.01,91.931,22.91768544]
[1772638774709,7.29137785,92.01,91.959,9.785]
[1772638775010,22.8954663,92.033,91.96,22.91768544]
[1772638775011,7.29137785,92.03,91.96,22.91768544]
[1772638775505,9.779,92.02,91.96,22.91768544]
[1772638777007,9.78,92.012,91.939,22.91768544]
[1772638777208,22.8954663,92.029,91.939,22.91768544]
[1772638777602,9.779,92.013,91.96,9.785]
[1772638778810,22.8954663,92.004,91.939,22.91768544]
[1772638779009,7.29429257,91.98,91.907,22.91768544]
[1772638779308,7.29429257,92.0,91.951,9.786]
[1772638779511,9.779,92.014,91.949,22.91768544]
[1772638779713,22.8954663,91.999,91.921,22.91768544]
[1772638779903,152.059,92.058,91.86,7.29429257]
[1772638779904,7.29429257,92.02,91.949,22.91768544]
[1772638780106,30.18975887,92.02,91.949,22.91768544]
[1772638780309,22.8954663,91.999,91.928,22.91768544]
[1772638781114,7.29429257,92.0,91.947,22.91768544]
[1772638781315,30.18975887,92.02,91.947,22.91768544]
[1772638781715,7.29429257,92.0,91.906,22.91768544]
[1772638782709,9.782,91.992,91.938,9.787]
[1772638783215,7.29429257,92.0,91.938,9.787]
[1772638783511,7.29429257,92.01,91.939,22.91768544]
[1772638784018,9.781,92.002,91.946,9.787]
[1772638784218,22.8954663,92.009,91.939,22.91768544]
[1772638784416,9.782,91.993,91.939,22.91768544]
[1772638784622,22.8954663,91.989,91.919,22.91768544]
[1772638785622,22.8954663,91.979,91.881,22.91768544]
[1772638786122,22.8954663,91.979,91.925,9.789]
[1772638786123,9.783,91.977,91.925,9.789]
[1772638786925,9.783,91.977,91.918,22.91768544]
[1772638787415,9.784,91.969,91.918,22.91768544]
[1772638787620,7.29429257,91.98,91.918,22.91768544]
[1772638788518,26.84829257,92.04,91.958,9.785]
[1772638788519,7.29429257,92.01,91.958,9.785]
[1772638788714,20.7875776,92.009,91.911,21.99533056]
[1772638788912,28.08187017,91.99,91.911,21.99533056]
[1772638789120,9.784,91.973,91.92,9.789]
[1772638789323,20.7875776,91.969,91.891,21.99533056]
[1772638789523,7.29429257,91.95,91.891,21.99533056]
[1772638789720,9.787,91.941,91.883,9.793]
[1772638789924,7.29429257,91.95,91.87,21.99533056]
[1772638790220,20.7875776,91.949,91.87,21.99533056]
[1772638790930,9.789,91.927,91.87,21.99533056]
[1772638791527,7.29429257,91.93,91.87,31.79033056]
[1772638792026,7.29429257,91.93,91.87,21.99533056]
[1772638792825,9.788,91.929,91.87,21.99533056]
[1772638793129,19.567,91.976,91.87,21.99533056]
[1772638793326,20.7875776,91.992,91.901,21.99533056]
[1772638793523,7.29429257,91.98,91.901,21.99533056]
[1772638794030,20.7875776,91.979,91.901,21.99533056]
[1772638795227,20.7875776,91.979,91.919,9.789]
[1772638795436,20.7875776,91.979,91.901,21.99533056]
[1772638796635,9.784,91.972,91.911,9.79]
[1772638796932,20.7875776,91.979,91.901,21.99533056]
[1772638797537,7.29429257,91.99,91.921,21.99533056]
[1772638797832,20.7875776,91.989,91.921,21.99533056]
[1772638798036,9.783,91.977,91.921,21.99533056]
[1772638798237,9.783,91.977,91.87,7.29429257]
[1772638798238,7.29429257,91.97,91.9,21.99533056]
[1772638798437,20.7875776,91.969,91.9,21.99533056]
[1772638798638,9.786,91.952,91.9,21.99533056]
[1772638798833,20.7875776,91.969,91.9,21.99533056]
[1772638799038,28.08187017,91.99,91.9,21.99533056]
[1772638799540,20.7875776,91.99,91.9,21.99533056]
[1772638800137,9.784,91.97,91.915,9.79]
[1772638800340,20.7875776,91.979,91.9,21.99533056]
[1772638800635,9.784,91.971,91.9,21.99533056]
[1772638800842,20.7875776,91.979,91.9,21.99533056]
[1772638801346,20.7875776,91.979,91.906,21.99533056]
[1772638801838,20.7875776,91.979,91.925,9.789]
[1772638802234,9.783,91.978,91.916,9.79]
[1772638802435,20.7875776,91.979,91.906,21.99533056]
[1772638802937,9.781,91.996,91.932,9.788]
[1772638803238,7.29429257,91.98,91.906,21.99533056]
[1772638803443,20.7875776,91.979,91.906,21.99533056]
[1772638803738,9.786,91.952,91.906,21.99533056]
[1772638804238,9.784,91.97,91.91,9.79]
[1772638804937,20.7875776,91.979,91.916,9.79]
[1772638805138,20.7875776,91.979,91.871,21.99533056]
[1772638805338,20.7875776,91.979,91.897,21.99533056]
[1772638805542,7.29429257,91.98,91.897,21.99533056]
[1772638805742,20.7875776,91.999,91.897,21.99533056]
[1772638805945,9.781,92.003,91.929,21.99533056]
[1772638806242,20.7875776,92.019,91.929,21.99533056]
[1772638806832,9.78,92.005,91.946,9.786]
[1772638807141,20.7875776,92.019,91.929,21.99533056]
[1772638807339,20.7875776,91.999,91.901,21.99533056]
[1772638807840,20.29011989,92.04,91.921,21.99533056]
[1772638807841,7.29429257,92.01,91.921,21.99533056]
[1772638808040,9.78,92.007,91.952,9.786]
[1772638808539,7.29429257,92.01,91.94,21.99533056]
[1772638809940,7.29429257,92.03,91.94,21.99533056]
[1772638810145,20.7875776,92.009,91.94,21.99533056]
[1772638810440,9.781,92.003,91.94,21.99533056]
[1772638810639,7.29429257,92.01,91.94,21.99533056]
[1772638810943,20.7875776,92.029,91.94,21.99533056]
[1772638811144,9.781,92.001,91.945,9.787]
[1772638811345,20.7875776,92.009,91.94,21.99533056]
[1772638811644,20.7875776,92.009,91.919,21.99533056]
[1772638812043,7.29429257,91.99,91.919,21.99533056]
[1772638812345,20.7875776,91.989,91.919,21.99533056]
[1772638813245,9.782,91.99,91.931,21.99533056]
[1772638814442,9.784,91.975,91.91,21.99533056]
[1772638814641,7.29429257,92.0,91.91,21.99533056]
[1772638815445,20.7875776,92.012,91.921,21.99533056]
[1772638816149,9.78,92.01,91.954,9.786]
[1772638816448,20.7875776,92.012,91.943,21.99533056]
[1772638816648,9.781,92.003,91.946,9.787]
[1772638817349,9.781,92.003,91.954,9.786]
[1772638817746,20.7875776,92.012,91.954,9.786]
[1772638817951,9.78,92.011,91.958,9.785]
[1772638818151,9.78,92.011,91.955,21.99533056]
[1772638818152,20.7875776,92.019,91.93,7.29429257]
[1772638818348,20.7875776,92.019,91.942,9.787]
[1772638818542,7.29429257,92.0,91.942,9.787]
[1772638820152,7.29429257,92.0,91.949,9.786]
[1772638820351,20.7875776,92.019,91.949,20.9113286]
[1772638820840,19.554,92.04,91.949,20.9113286]
[1772638821151,21.40989721,92.067,91.979,20.9113286]
[1772638821445,7.29429257,92.08,92.019,20.9113286]
[1772638821845,21.40989721,92.079,91.991,20.9113286]
[1772638822543,12.99582732,92.126,92.028,20.9113286]
[1772638822544,7.29429257,92.1,92.028,20.9113286]
[1772638822744,7.29429257,92.12,92.028,20.9113286]
[1772638822949,7.29429257,92.12,92.031,20.9113286]
[1772638823546,7.29429257,92.12,92.046,20.91426806]
[1772638823854,28.72038797,92.1,92.024,20.91426806]
[1772638824048,9.77,92.098,92.024,20.91426806]
[1772638824253,21.4260954,92.097,92.024,20.91426806]
[1772638825152,21.4260954,92.095,92.024,20.91426806]
[1772638825347,7.29429257,92.1,91.971,9.68496151]
[1772638825348,21.4260954,92.079,91.971,20.91426806]
[1772638825552,21.4260954,92.079,91.944,12.91371769]
[1772638825553,21.4260954,92.079,91.991,20.91426806]
[1772638825953,21.4260954,92.079,92.013,20.91426806]
[1772638826153,21.4260954,92.099,92.013,20.91426806]
[1772638826350,164.89682732,92.154,92.013,20.91426806]
[1772638826351,7.29429257,92.11,92.013,20.91426806]
[1772638826744,7.29429257,92.11,92.01,7.29429257]
[1772638826745,7.29429257,92.13,92.044,20.91426806]
[1772638826947,21.4260954,92.142,92.051,20.91426806]
[1772638827157,21.4260954,92.142,92.06,20.91426806]
[1772638828255,21.4260954,92.142,92.061,20.91426806]
[1772638829050,21.4260954,92.142,92.065,20.91426806]
[1772638829648,7.29429257,92.15,92.043,20.91426806]
[1772638829649,21.4260954,92.129,92.043,20.91426806]
[1772638829849,7.29429257,92.11,92.043,20.91426806]
[1772638830050,28.72038797,92.11,92.043,20.91426806]
[1772638830251,21.4260954,92.109,92.043,20.91426806]
[1772638831754,21.4260954,92.131,92.043,20.91426806]
[1772638831959,21.4260954,92.131,91.99,7.29429257]
[1772638831960,21.4260954,92.131,92.051,20.91426806]
[1772638832159,7.29429257,92.14,92.051,20.91426806]
[1772638832454,9.767,92.13,92.053,20.91426806]
[1772638832654,21.4260954,92.129,92.053,20.91426806]
[1772638832960,21.4260954,92.129,92.056,20.91426806]
[1772638833651,21.4260954,92.129,92.062,9.774]
[1772638833854,21.4260954,92.129,92.063,20.91426806]
[1772638835060,7.29429257,92.14,92.065,20.91426806]
[1772638835756,9.766,92.137,92.071,20.91426806]
[1772638836654,7.29429257,92.14,92.071,20.91426806]
[1772638836655,9.767,92.127,92.071,20.91426806]
[1772638836855,9.767,92.127,92.06,9.774]
[1772638837160,9.767,92.127,92.051,20.91426806]
[1772638837353,21.4260954,92.154,92.056,20.91426806]
[1772638837558,28.72038797,92.14,92.056,20.91426806]
[1772638838560,9.767,92.13,92.068,9.774]
[1772638839257,9.767,92.13,92.058,20.91426806]
[1772638839962,9.768,92.121,92.059,30.68926806]
[1772638840158,9.768,92.121,92.06,20.91426806]
[1772638840464,9.767,92.129,92.061,9.774]
[1772638840660,21.4260954,92.129,92.02,7.27596231]
[1772638840852,21.4260954,92.109,92.04,20.91426806]
[1772638841762,21.4260954,92.129,92.04,20.91426806]
[1772638842063,7.27596231,92.16,92.04,20.91426806]
[1772638842064,31.1950954,92.109,92.04,20.91426806]
[1772638842362,21.4260954,92.108,92.04,20.91426806]
[1772638842762,21.4260954,92.108,92.042,9.776]
[1772638843163,21.4260954,92.108,92.043,20.91426806]
[1772638844058,9.769,92.107,92.047,9.776]
[1772638844360,21.4260954,92.108,92.043,20.91426806]
[1772638845460,21.4260954,92.108,92.021,20.91426806]
[1772638845757,21.4260954,92.128,92.021,20.91426806]
[1772638846060,21.4260954,92.128,92.02,7.27596231]
[1772638846061,9.767,92.126,92.054,20.91426806]
[1772638847257,9.767,92.126,92.04,7.27596231]
[1772638847258,7.27596231,92.13,92.07,20.91426806]
[1772638847862,7.27596231,92.13,92.076,9.773]
[1772638848559,9.766,92.143,92.086,9.772]
[1772638849761,21.4260954,92.148,92.086,9.772]
[1772638849957,20.47062592,92.209,92.095,20.25940316]
[1772638850166,7.27596231,92.19,92.101,20.25940316]
[1772638850459,9.763,92.168,92.112,9.769]
[1772638850764,27.74658823,92.17,92.101,20.25940316]
[1772638851063,27.74658823,92.17,92.11,9.769]
[1772638851254,27.74658823,92.17,92.101,20.25940316]
[1772638851457,20.47062592,92.169,92.101,20.25940316]
[1772638851658,20.47062592,92.129,92.051,20.25940316]
[1772638851861,7.27596231,92.11,92.051,20.25940316]
[1772638852158,7.27596231,92.09,92.029,20.25940316]
[1772638852360,7.27596231,92.15,92.029,20.25940316]
[1772638852361,7.27596231,92.11,92.029,20.25940316]
[1772638852555,7.27596231,92.11,92.01,7.27596231]
[1772638852556,9.767,92.127,92.066,9.774]
[1772638852758,7.27596231,92.13,92.054,20.25940316]
[1772638852759,20.47062592,92.129,92.054,20.25940316]
[1772638853862,9.767,92.127,92.071,9.773]
[1772638854066,27.74658823,92.15,92.054,20.25940316]
[1772638854262,20.47062592,92.149,92.054,20.25940316]
[1772638854463,20.47062592,92.127,92.054,20.25940316]
[1772638854659,7.27596231,92.12,92.054,20.25940316]
[1772638855166,7.27596231,92.12,92.054,30.03440316]
[1772638855364,7.27596231,92.12,92.054,20.25940316]
[1772638855565,9.768,92.119,92.054,30.03440316]
[1772638855862,9.768,92.119,92.021,20.25940316]
[1772638855863,20.47062592,92.119,92.021,20.25940316]
[1772638856063,7.27596231,92.1,92.021,20.25940316]
[1772638856269,20.47062592,92.098,92.035,9.777]
[1772638856665,20.47062592,92.098,92.021,20.25940316]
[1772638856864,17.04596231,92.1,92.021,20.25940316]
[1772638857665,20.47062592,92.099,92.021,20.25940316]
[1772638858164,9.771,92.092,92.032,9.777]
[1772638858369,20.47062592,92.099,92.033,20.25940316]
[1772638858568,7.27596231,92.1,92.033,20.25940316]
[1772638860271,20.47062592,92.119,92.033,20.25940316]
[1772638860569,7.27596231,92.08,92.006,20.25940316]
[1772638861167,7.27596231,92.1,92.006,20.25940316]
[1772638861367,20.47062592,92.099,92.006,20.25940316]
[1772638861574,7.27596231,92.08,92.006,20.25940316]
[1772638861772,20.47062592,92.099,92.011,20.25940316]
[1772638862168,20.47062592,92.079,92.011,20.25940316]
[1772638862577,20.47062592,92.124,92.011,20.25940316]
[1772638862876,9.77,92.098,92.034,20.25940316]
[1772638863075,27.74658823,92.09,92.011,20.25940316]
[1772638863377,20.47062592,92.089,92.011,20.25940316]
[1772638863579,9.774,92.068,92.011,20.25940316]
[1772638864367,7.27596231,92.07,92.015,20.25940316]
[1772638864577,9.772,92.079,92.015,20.25940316]
[1772638864773,27.74658823,92.09,92.015,20.25940316]
[1772638865079,20.47062592,92.079,92.005,265.50596306]
[1772638865281,20.47062592,92.079,92.006,20.25940316]
[1772638865577,20.47062592,92.079,92.005,265.50596306]
[1772638865578,7.27596231,92.09,92.016,20.25940316]
[1772638866378,7.27596231,92.09,92.034,9.777]
[1772638866674,7.27596231,92.11,92.035,20.25940316]
[1772638867073,7.27596231,92.11,92.05,9.775]
[1772638867279,7.27596231,92.11,92.035,20.25940316]